bitfinex-derivatives/quotes_SOLF0:USTF0_20260204
["timestamp","ask_amount","ask_price","bid_price","bid_amount"]
[1770166086778,15.85673588,98.689,98.608,15.13476105]
[1770166086977,15.85673588,98.689,98.61,15.13476105]
[1770166087183,15.85673588,98.671,98.616,15.13476105]
[1770166088291,9.1355,98.659,98.616,15.13476105]
[1770166088990,15.85673588,98.648,98.609,404.7]
[1770166089288,15.85673588,98.646,98.576,15.13476105]
[1770166089492,15.85673588,98.646,98.586,15.13476105]
[1770166090294,9.1357,98.657,98.601,15.13476105]
[1770166090480,15.85673588,98.656,98.601,15.13476105]
[1770166090983,15.85673588,98.644,98.583,15.13476105]
[1770166091589,9.1381,98.632,98.583,15.13476105]
[1770166093396,8.23285208,98.65,98.571,9.1436]
[1770166093397,9.1386,98.626,98.571,24.27836105]
[1770166093597,9.1386,98.626,98.574,15.13476105]
[1770166093797,15.85673588,98.631,98.574,15.13476105]
[1770166094696,15.85673588,98.631,98.577,9.143]
[1770166095095,15.85673588,98.631,98.577,24.27776105]
[1770166096700,15.85673588,98.631,98.577,15.13476105]
[1770166096701,9.1382,98.63,98.577,15.13476105]
[1770166100499,15.85673588,98.631,98.578,25.04475842]
[1770166100702,15.85673588,98.631,98.579,15.90175842]
[1770166102106,24.99483588,98.631,98.579,15.90175842]
[1770166102707,15.85673588,98.631,98.581,9.1427]
[1770166102906,15.85673588,98.631,98.549,15.90175842]
[1770166103704,9.139,98.621,98.563,15.90175842]
[1770166103903,14.77862559,98.62,98.563,15.90175842]
[1770166104806,9.1393,98.619,98.567,9.144]
[1770166105109,14.77862559,98.62,98.563,15.90175842]
[1770166105609,9.1394,98.617,98.564,15.90175842]
[1770166107609,14.77862559,98.606,98.557,404.74]
[1770166108411,9.1395,98.616,98.559,15.90175842]
[1770166108610,230.48,98.651,98.537,142.2846]
[1770166108611,14.77862559,98.639,98.561,15.90175842]
[1770166108806,9.1384,98.628,98.563,15.90175842]
[1770166109305,14.77862559,98.639,98.565,15.90175842]
[1770166109612,14.77862559,98.639,98.568,15.90175842]
[1770166110710,9.29199678,98.657,98.578,9.143]
[1770166110711,14.77862559,98.638,98.578,9.143]
[1770166110912,14.77862559,98.638,98.568,15.90175842]
[1770166111607,14.77862559,98.626,98.568,15.90175842]
[1770166112709,9.1391,98.621,98.568,15.90175842]
[1770166112910,8.23285208,98.64,98.568,15.90175842]
[1770166112911,14.77862559,98.645,98.568,15.90175842]
[1770166113803,14.77862559,98.63,98.571,15.90175842]
[1770166114708,14.77862559,98.617,98.571,15.90175842]
[1770166116813,9.1395,98.616,98.571,15.90175842]
[1770166117012,14.77862559,98.617,98.556,15.90175842]
[1770166117210,9.1383,98.629,98.57,15.90175842]
[1770166117407,14.77862559,98.634,98.57,15.90175842]
[1770166117908,14.77862559,98.632,98.574,15.90175842]
[1770166118711,9.1385,98.627,98.574,15.90175842]
[1770166119110,14.77862559,98.632,98.576,25.04485842]
[1770166119406,14.77862559,98.632,98.577,15.90175842]
[1770166120009,9.29199678,98.657,98.58,15.90175842]
[1770166120209,14.77862559,98.659,98.582,15.90175842]
[1770166120513,14.77862559,98.653,98.581,404.76]
[1770166120709,9.1388,98.623,98.581,404.76]
[1770166120915,14.77862559,98.622,98.572,15.90175842]
[1770166122214,14.77862559,98.612,98.557,15.90175842]
[1770166122804,9.1402,98.609,98.557,15.90175842]
[1770166124108,14.77862559,98.628,98.567,15.90175842]
[1770166124415,14.77862559,98.646,98.569,15.90175842]
[1770166125823,9.1378,98.634,98.569,15.90175842]
[1770166126014,14.77862559,98.646,98.569,15.90175842]
[1770166126408,14.77862559,98.639,98.571,15.90175842]
[1770166126609,14.77862559,98.639,98.581,15.90175842]
[1770166126809,14.77862559,98.629,98.581,15.90175842]
[1770166127506,23.91712559,98.627,98.581,15.90175842]
[1770166127704,14.77862559,98.626,98.575,9.1432]
[1770166128111,14.77862559,98.626,98.575,25.04495842]
[1770166128608,14.77862559,98.626,98.575,15.90175842]
[1770166128807,9.1387,98.625,98.575,15.90175842]
[1770166133016,14.77862559,98.626,98.575,15.90175842]
[1770166133814,14.77862559,98.626,98.578,25.02840123]
[1770166137117,14.77862559,98.626,98.583,14.93788282]
[1770166137324,9.1377,98.636,98.583,14.93788282]
[1770166137722,15.98588885,98.641,98.583,14.93788282]
[1770166138124,15.98588885,98.638,98.583,14.93788282]
[1770166139725,9.138,98.632,98.583,14.93788282]
[1770166140525,15.98588885,98.628,98.549,14.93788282]
[1770166140825,15.98588885,98.625,98.549,14.93788282]
[1770166141220,15.98588885,98.62,98.557,14.93788282]
[1770166141927,15.98588885,98.617,98.557,14.93788282]
[1770166142524,15.98588885,98.608,98.526,14.93788282]
[1770166142826,15.98588885,98.599,98.526,14.93788282]
[1770166143424,15.98588885,98.617,98.544,14.93788282]
[1770166144129,15.98588885,98.616,98.555,24.08288282]
[1770166144320,142.141,98.636,98.529,14.93788282]
[1770166144321,15.98588885,98.614,98.529,14.93788282]
[1770166145328,15.98588885,98.614,98.528,404.76]
[1770166145329,15.98588885,98.603,98.544,14.93788282]
[1770166146327,25.12678885,98.6,98.544,14.93788282]
[1770166147123,9.1401,98.609,98.547,14.93788282]
[1770166147518,25.12598885,98.609,98.547,14.93788282]
[1770166148027,15.98588885,98.608,98.558,14.93788282]
[1770166148222,15.98588885,98.639,98.558,14.93788282]
[1770166148426,15.98588885,98.639,98.55,8.23472975]
[1770166148427,15.98588885,98.639,98.56,14.93788282]
[1770166148928,15.98588885,98.639,98.585,14.93788282]
[1770166149527,25.12148885,98.657,98.585,14.93788282]
[1770166149724,15.98588885,98.657,98.589,14.93788282]
[1770166149923,15.98588885,98.674,98.598,14.93788282]
[1770166150128,15.98588885,98.674,98.6,14.93788282]
[1770166150628,15.98588885,98.674,98.602,14.93788282]
[1770166151129,15.98588885,98.663,98.583,14.93788282]
[1770166152737,15.98588885,98.646,98.586,9.1421]
[1770166153031,15.98588885,98.646,98.587,14.93788282]
[1770166153327,9.1361,98.652,98.591,14.93788282]
[1770166154030,25.12198885,98.652,98.591,14.93788282]
[1770166154730,25.12198885,98.652,98.593,9.1415]
[1770166154931,25.12198885,98.652,98.591,14.93788282]
[1770166155531,9.1368,98.644,98.591,14.93788282]
[1770166156731,9.137,98.642,98.591,14.93788282]
[1770166157232,15.98588885,98.641,98.578,404.74]
[1770166157825,15.98588885,98.641,98.579,14.93788282]
[1770166158427,9.1381,98.631,98.579,14.93788282]
[1770166158634,15.98588885,98.63,98.562,14.93788282]
[1770166160326,3.29490965,98.62,98.562,14.93788282]
[1770166160632,3.29490965,98.6,98.549,14.93788282]
[1770166161231,15.98588885,98.609,98.551,15.28921291]
[1770166162323,25.12598885,98.609,98.551,15.28921291]
[1770166168738,3.29490965,98.59,98.551,15.28921291]
[1770166168938,3.29490965,98.59,98.537,15.28921291]
[1770166169140,15.67829329,98.589,98.537,15.28921291]
[1770166169337,3.29490965,98.58,98.537,15.28921291]
[1770166169738,142.1919,98.6,98.529,359.64]
[1770166169739,9.1438,98.569,98.529,359.64]
[1770166170235,9.1438,98.569,98.519,15.28921291]
[1770166171034,15.67829329,98.579,98.52,18.58412256]
[1770166171637,9.1431,98.576,98.522,15.28921291]
[1770166172237,9.144,98.567,98.522,15.28921291]
[1770166179447,9.1426,98.582,98.531,15.28921291]
[1770166179938,3.29490965,98.56,98.516,15.28921291]
[1770166180140,3.29490965,98.55,98.502,15.28921291]
[1770166180339,3.29490965,98.54,98.491,15.28921291]
[1770166180836,3.29490965,98.54,98.493,15.28921291]
[1770166181448,9.1459,98.546,98.493,15.28921291]
[1770166182044,15.67829329,98.549,98.494,24.43981291]
[1770166182441,15.67829329,98.549,98.495,396.98]
[1770166182948,9.1457,98.548,98.495,396.98]
[1770166183145,9.1457,98.548,98.496,15.28921291]
[1770166184239,3.29490965,98.54,98.496,15.28921291]
[1770166184442,9.1461,98.544,98.496,15.28921291]
[1770166185147,15.67829329,98.547,98.496,15.28921291]
[1770166187651,18.97756358,98.56,98.501,15.28921291]
[1770166188751,15.67829329,98.558,98.503,15.28921291]
[1770166189849,9.145,98.556,98.503,15.28921291]
[1770166191055,24.08507526,98.556,98.503,15.28921291]
[1770166192055,14.94007526,98.573,98.531,14.66268592]
[1770166193254,14.94007526,98.57,98.517,14.66268592]
[1770166193459,18.23934555,98.57,98.517,14.66268592]
[1770166194657,9.1439,98.568,98.517,14.66268592]
[1770166195857,15.2388825,98.589,98.531,15.18576941]
[1770166196747,9.1422,98.585,98.531,15.18576941]
[1770166196949,3.29927029,98.59,98.531,15.18576941]
[1770166196950,15.2388825,98.584,98.531,15.18576941]
[1770166197757,9.1427,98.58,98.531,15.18576941]
[1770166198058,3.29927029,98.6,98.541,15.18576941]
[1770166198259,15.2388825,98.602,98.541,15.18576941]
[1770166198458,15.2388825,98.602,98.551,15.18576941]
[1770166199863,15.2388825,98.601,98.551,15.18576941]
[1770166201161,142.1267,98.645,98.542,201.92]
[1770166201162,15.2388825,98.648,98.591,15.18576941]
[1770166201664,15.2388825,98.647,98.591,15.18576941]
[1770166201859,15.2388825,98.629,98.575,15.18576941]
[1770166202060,18.53815279,98.62,98.56,15.18576941]
[1770166202362,15.2388825,98.609,98.56,15.18576941]
[1770166202965,24.3792825,98.605,98.56,15.18576941]
[1770166203269,15.2388825,98.619,98.56,15.18576941]
[1770166204665,24.3782825,98.616,98.56,15.18576941]
[1770166204871,3.29927029,98.59,98.537,404.92]
[1770166205070,3.29927029,98.59,98.531,15.18576941]
[1770166205268,3.29927029,98.58,98.531,15.18576941]
[1770166205466,15.2388825,98.589,98.531,15.18576941]
[1770166205664,15.2388825,98.605,98.551,15.18576941]
[1770166206369,18.53815279,98.62,98.561,15.18576941]
[1770166207165,15.2388825,98.618,98.561,15.18576941]
[1770166207367,15.2388825,98.609,98.553,9.1451]
[1770166207567,142.1457,98.632,98.546,404.88]
[1770166207568,15.2388825,98.599,98.546,404.88]
[1770166207875,15.2388825,98.599,98.538,15.18576941]
[1770166208773,15.2388825,98.599,98.542,9.1461]
[1770166209071,15.2388825,98.599,98.543,15.18576941]
[1770166209777,15.2388825,98.599,98.545,15.18576941]
[1770166209965,15.2388825,98.599,98.546,15.18576941]
[1770166210568,15.2388825,98.597,98.545,404.86]
[1770166210869,18.53815279,98.59,98.545,404.86]
[1770166211170,15.2388825,98.59,98.546,15.18576941]
[1770166212374,18.53815279,98.59,98.546,15.18576941]
[1770166213175,18.53815279,98.62,98.551,15.18576941]
[1770166213367,18.53815279,98.62,98.561,15.18576941]
[1770166214678,18.53815279,98.62,98.563,9.1442]
[1770166214679,24.3780825,98.619,98.563,9.1442]
[1770166214871,3.29927029,98.63,98.571,15.18576941]
[1770166215067,15.2388825,98.634,98.571,15.18576941]
[1770166216773,3.29927029,98.63,98.573,15.18576941]
[1770166217668,15.2388825,98.634,98.575,9.1432]
[1770166217871,15.2388825,98.634,98.576,15.18576941]
[1770166218071,15.2388825,98.634,98.57,404.86]
[1770166218072,15.2388825,98.634,98.581,15.18576941]
[1770166219673,15.2388825,98.634,98.581,24.32836941]
[1770166219975,15.2388825,98.634,98.582,15.18576941]
[1770166220280,15.2388825,98.634,98.565,142.2414]
[1770166220281,15.2388825,98.652,98.605,15.18576941]
[1770166221974,3.29927029,98.65,98.605,15.18576941]
[1770166222175,18.67156626,98.65,98.605,15.18576941]
[1770166222575,3.29927029,98.64,98.592,9.1415]
[1770166222779,3.29927029,98.64,98.592,24.31038812]
[1770166222980,18.67156626,98.65,98.596,15.16888812]
[1770166224079,15.37229597,98.648,98.596,15.16888812]
[1770166224283,18.67156626,98.63,98.581,15.16888812]
[1770166225376,15.37229597,98.629,98.57,404.76]
[1770166225575,15.37229597,98.629,98.571,15.16888812]
[1770166225775,3.29927029,98.62,98.571,15.16888812]
[1770166227977,3.29927029,98.61,98.553,24.31398812]
[1770166228176,142.1309,98.643,98.553,15.16888812]
[1770166228177,3.29927029,98.6,98.553,15.16888812]
[1770166228387,15.37229597,98.589,98.531,15.16888812]
[1770166228586,3.29927029,98.58,98.531,15.16888812]
[1770166229589,15.37229597,98.589,98.531,15.16888812]
[1770166230786,15.37229597,98.605,98.535,15.16888812]
[1770166230986,15.37229597,98.605,98.537,15.16888812]
[1770166232692,15.37229597,98.605,98.549,15.16888812]
[1770166233489,15.37229597,98.605,98.553,9.1452]
[1770166233693,9.1378,98.633,98.554,15.16888812]
[1770166233883,9.1378,98.633,98.556,15.16888812]
[1770166234088,15.37229597,98.632,98.572,15.16888812]
[1770166234892,24.51189597,98.613,98.558,9.1446]
[1770166235094,24.51189597,98.613,98.559,15.16888812]
[1770166235498,15.37229597,98.613,98.561,15.16888812]
[1770166235890,15.37229597,98.613,98.555,404.78]
[1770166236095,15.37229597,98.599,98.555,404.78]
[1770166236293,15.37229597,98.599,98.541,15.16888812]
[1770166237195,15.37229597,98.599,98.543,15.16888812]
[1770166237592,15.37229597,98.599,98.545,15.16888812]
[1770166237796,15.37229597,98.599,98.547,15.16888812]
[1770166238797,15.37229597,98.599,98.551,15.16888812]
[1770166239701,15.37229597,98.599,98.553,9.1452]
[1770166239897,15.37229597,98.614,98.554,15.16888812]
[1770166240300,15.37229597,98.612,98.555,413.9249]
[1770166241198,15.37229597,98.612,98.555,9.1449]
[1770166241395,15.37229597,98.61,98.554,15.16888812]
[1770166242090,15.37229597,98.61,98.556,24.31378812]
[1770166242296,15.37229597,98.61,98.557,15.16888812]
[1770166243198,15.37229597,98.608,98.557,15.16888812]
[1770166244003,15.37229597,98.608,98.559,15.16888812]
[1770166245301,24.51239597,98.608,98.559,15.16888812]
[1770166245495,15.37229597,98.607,98.559,15.16888812]
[1770166247997,15.37229597,98.604,98.559,15.16888812]
[1770166248204,15.37229597,98.604,98.554,404.78]
[1770166249794,15.37229597,98.59,98.544,15.16888812]
[1770166250801,9.1421,98.587,98.544,15.16888812]
[1770166251503,15.18814178,98.605,98.547,15.40650301]
[1770166251708,15.18814178,98.605,98.549,15.40650301]
[1770166252004,15.18814178,98.601,98.549,24.55200301]
[1770166252503,3.29585787,98.6,98.55,15.40650301]
[1770166253004,9.141,98.599,98.551,24.55180301]
[1770166253203,9.141,98.599,98.552,15.40650301]
[1770166254597,9.141,98.599,98.523,142.3023]
[1770166254598,9.1422,98.586,98.537,15.40650301]
[1770166254997,3.29585787,98.59,98.533,404.82]
[1770166254998,15.18814178,98.577,98.533,404.82]
[1770166255201,18.48399965,98.57,98.522,15.40650301]
[1770166255402,3.29585787,98.56,98.522,15.40650301]
[1770166257301,9.1438,98.568,98.522,15.40650301]
[1770166257696,23.97166677,98.563,98.508,9.1493]
[1770166257905,3.29585787,98.56,98.509,15.60940564]
[1770166258712,9.1447,98.559,98.509,15.60940564]
[1770166259407,14.82736677,98.563,98.512,15.60940564]
[1770166259607,12.43945787,98.57,98.512,15.60940564]
[1770166259806,14.82736677,98.569,98.512,15.60940564]
[1770166260005,9.144,98.567,98.513,15.60940564]
[1770166260505,9.1431,98.576,98.516,15.60940564]
[1770166260815,14.82736677,98.575,98.516,15.60940564]
[1770166261504,9.144,98.566,98.516,15.60940564]
[1770166262006,9.144,98.566,98.517,15.60940564]
[1770166263109,18.12322464,98.56,98.517,15.60940564]
[1770166264714,9.145,98.556,98.517,15.60940564]
[1770166265704,142.2173,98.583,98.487,15.60940564]
[1770166265705,3.29585787,98.53,98.487,15.60940564]
[1770166265902,14.82736677,98.529,98.471,15.60940564]
[1770166266109,3.29585787,98.51,98.471,15.60940564]
[1770166267115,18.12322464,98.52,98.471,15.60940564]
[1770166270413,14.82736677,98.509,98.464,404.92]
[1770166270611,14.82736677,98.489,98.427,15.60940564]
[1770166270816,14.82736677,98.489,98.429,15.60940564]
[1770166271211,14.82736677,98.489,98.431,15.60940564]
[1770166271410,14.82736677,98.489,98.441,15.60940564]
[1770166271812,14.82736677,98.489,98.442,15.60940564]
[1770166274116,3.29585787,98.48,98.442,15.60940564]
[1770166274417,14.82736677,98.488,98.442,15.60940564]
[1770166274814,14.82736677,98.486,98.428,414.1567]
[1770166275014,14.82736677,98.486,98.432,15.60940564]
[1770166275213,14.82736677,98.439,98.366,15.60940564]
[1770166275412,14.82736677,98.456,98.376,15.60940564]
[1770166275609,14.82736677,98.456,98.375,142.5164]
[1770166275610,14.82736677,98.456,98.4,3.29585787]
[1770166275811,14.82736677,98.456,98.4,18.90526351]
[1770166276117,3.29585787,98.48,98.421,15.60940564]
[1770166276315,14.82736677,98.488,98.421,15.60940564]
[1770166277321,14.82736677,98.485,98.422,420.74940564]
[1770166277509,14.82736677,98.485,98.423,15.60940564]
[1770166277716,14.82736677,98.485,98.431,15.60940564]
[1770166279722,3.29585787,98.48,98.431,15.60940564]
[1770166280720,18.48945536,98.48,98.431,15.60940564]
[1770166280928,3.29585787,98.47,98.428,405.14]
[1770166281227,3.29585787,98.46,98.416,14.27462357]
[1770166281425,18.48945536,98.47,98.416,14.27462357]
[1770166281734,15.19359749,98.439,98.384,14.27462357]
[1770166284521,3.29585787,98.43,98.384,14.27462357]
[1770166285120,15.19359749,98.439,98.384,14.27462357]
[1770166285331,3.29585787,98.43,98.384,14.27462357]
[1770166286230,15.19359749,98.449,98.384,14.27462357]
[1770166286430,15.19359749,98.439,98.384,14.27462357]
[1770166287225,15.19359749,98.439,98.372,405.22]
[1770166287226,3.29585787,98.42,98.372,405.22]
[1770166287429,3.29585787,98.42,98.318,142.5981]
[1770166287430,3.29585787,98.41,98.352,14.27462357]
[1770166287625,15.19359749,98.436,98.361,14.27462357]
[1770166287832,15.19359749,98.429,98.371,14.27462357]
[1770166288320,3.29585787,98.42,98.371,14.27462357]
[1770166288731,18.48945536,98.42,98.371,14.27462357]
[1770166289728,24.35139749,98.418,98.371,14.27462357]
[1770166289922,24.35139749,98.418,98.36,3.29585787]
[1770166289923,3.29585787,98.41,98.355,14.27462357]
[1770166290329,15.19359749,98.417,98.355,14.27462357]
[1770166291327,15.19359749,98.417,98.361,14.27462357]
[1770166291735,18.48945536,98.4,98.333,14.27462357]
[1770166292834,18.48945536,98.4,98.336,14.27462357]
[1770166293535,15.19359749,98.389,98.336,14.27462357]
[1770166294232,3.29585787,98.4,98.341,14.27462357]
[1770166294835,15.19359749,98.399,98.341,14.27462357]
[1770166296229,15.19359749,98.399,98.327,405.44]
[1770166296230,15.19359749,98.399,98.351,14.27462357]
[1770166296430,3.29585787,98.43,98.371,14.27462357]
[1770166296627,15.19359749,98.43,98.371,14.27462357]
[1770166296826,18.48945536,98.43,98.371,14.27462357]
[1770166297030,9.1568,98.429,98.371,14.27462357]
[1770166297228,18.48945536,98.42,98.371,14.27462357]
[1770166297434,18.48945536,98.42,98.357,419.79462357]
[1770166297734,3.29585787,98.41,98.357,419.79462357]
[1770166297935,3.29585787,98.41,98.358,14.27462357]
[1770166298128,18.48945536,98.42,98.358,14.27462357]
[1770166298527,18.48945536,98.42,98.36,3.29585787]
[1770166298836,18.48945536,98.42,98.361,14.27462357]
[1770166299335,15.19359749,98.416,98.361,14.27462357]
[1770166299535,142.434,98.433,98.299,142.6257]
[1770166299536,15.19359749,98.399,98.342,14.27462357]
[1770166300234,15.19359749,98.389,98.342,14.27462357]
[1770166300932,3.29585787,98.4,98.342,14.27462357]
[1770166301331,3.29585787,98.41,98.351,14.27462357]
[1770166301528,3.29585787,98.42,98.361,14.27462357]
[1770166302034,3.29585787,98.42,98.363,14.27462357]
[1770166302636,15.19359749,98.409,98.352,405.56]
[1770166302836,142.4288,98.436,98.352,405.56]
[1770166302837,15.19359749,98.417,98.353,14.27462357]
[1770166303139,3.29585787,98.4,98.353,14.27462357]
[1770166303837,15.19359749,98.409,98.353,14.27462357]
[1770166304936,3.29585787,98.42,98.361,14.27462357]
[1770166305236,18.48945536,98.42,98.361,14.27462357]
[1770166305641,15.19359749,98.436,98.361,14.27462357]
[1770166305945,217.4,98.459,98.371,14.27462357]
[1770166305946,18.48945536,98.43,98.371,14.27462357]
[1770166306643,18.48945536,98.43,98.372,9.162]
[1770166306942,18.48945536,98.43,98.373,14.27462357]
[1770166307542,15.19359749,98.427,98.373,14.27462357]
[1770166308844,3.30747283,98.42,98.373,14.27462357]
[1770166309541,15.19359749,98.427,98.373,14.27462357]
[1770166311546,18.84913398,98.42,98.373,14.27462357]
[1770166311750,3.30747283,98.41,98.357,14.23305424]
[1770166312246,15.54166115,98.399,98.347,405.58]
[1770166312445,15.54166115,98.399,98.347,419.81305424]
[1770166312845,15.54166115,98.399,98.348,14.23305424]
[1770166316438,3.30747283,98.41,98.354,14.59310623]
[1770166316650,15.59336228,98.412,98.354,14.59310623]
[1770166316941,15.59336228,98.409,98.354,14.59310623]
[1770166317143,15.59336228,98.409,98.357,9.1634]
[1770166317449,15.59336228,98.409,98.357,23.75650623]
[1770166319252,15.59336228,98.409,98.358,14.59310623]
[1770166319645,9.1575,98.421,98.36,17.90057906]
[1770166319951,15.59336228,98.426,98.371,14.59310623]
[1770166320352,15.59336228,98.426,98.377,14.59310623]
[1770166320652,15.59336228,98.409,98.35,3.30747283]
[1770166320848,15.59336228,98.409,98.3,142.6245]
[1770166320849,3.30747283,98.38,98.333,14.59310623]
[1770166321348,15.59336228,98.389,98.333,14.59310623]
[1770166321545,3.30747283,98.4,98.341,14.59310623]
[1770166321743,15.59336228,98.405,98.341,14.59310623]
[1770166321947,18.90083511,98.4,98.341,14.59310623]
[1770166322750,18.90083511,98.4,98.345,14.59310623]
[1770166324057,18.90083511,98.4,98.346,9.1644]
[1770166324356,15.59336228,98.4,98.35,17.90057906]
[1770166324650,15.59336228,98.413,98.35,17.90057906]
[1770166324849,9.35339136,98.427,98.363,14.59310623]
[1770166325049,15.59336228,98.426,98.363,14.59310623]
[1770166325249,15.59336228,98.425,98.363,14.59310623]
[1770166325753,3.30747283,98.42,98.366,9.1626]
[1770166325950,18.90083511,98.42,98.363,14.59310623]
[1770166327358,18.90083511,98.42,98.365,14.59310623]
[1770166328465,28.25422647,98.42,98.365,14.59310623]
[1770166329168,24.75116228,98.418,98.365,14.59310623]
[1770166329567,9.35339136,98.417,98.365,14.59310623]
[1770166329767,24.75116228,98.418,98.368,14.59310623]
[1770166330064,15.59336228,98.418,98.368,14.59310623]
[1770166330366,15.59336228,98.418,98.369,9.1623]
[1770166331366,24.94675364,98.418,98.369,9.1623]
[1770166332364,9.35339136,98.417,98.369,9.1623]
[1770166332558,9.35339136,98.413,98.369,9.1623]
[1770166333564,9.35339136,98.414,98.369,9.1623]
[1770166333770,9.35339136,98.414,98.368,14.59310623]
[1770166334062,31.45188213,98.45,98.391,14.59310623]
[1770166334267,15.59336228,98.449,98.391,14.59310623]
[1770166334970,15.59336228,98.465,98.411,14.59310623]
[1770166336066,3.30747283,98.46,98.411,14.59310623]
[1770166336376,15.59336228,98.465,98.411,14.59310623]
[1770166338269,15.59336228,98.465,98.413,14.59310623]
[1770166338467,15.59336228,98.48,98.421,14.59310623]
[1770166339072,400.90412155,98.49,98.431,14.59310623]
[1770166339274,3.30747283,98.48,98.431,14.59310623]
[1770166339472,15.59336228,98.489,98.431,14.59310623]
[1770166339871,15.59336228,98.489,98.411,405.56]
[1770166339872,15.59336228,98.489,98.44,17.90057906]
[1770166340074,18.90083511,98.48,98.424,14.59310623]
[1770166340371,18.90083511,98.48,98.431,14.59310623]
[1770166340769,3.30747283,98.49,98.433,14.40650942]
[1770166340975,14.55470301,98.497,98.433,14.40650942]
[1770166341371,17.86217584,98.49,98.433,14.40650942]
[1770166342878,142.2687,98.547,98.45,3.30747283]
[1770166342879,14.55470301,98.505,98.45,3.30747283]
[1770166343074,14.55470301,98.505,98.451,14.40650942]
[1770166345177,14.55470301,98.505,98.453,14.40650942]
[1770166345578,14.55470301,98.505,98.46,3.30747283]
[1770166345981,3.30747283,98.53,98.471,14.40650942]
[1770166346177,14.55470301,98.538,98.484,14.40650942]
[1770166346881,14.55470301,98.555,98.491,14.40650942]
[1770166347084,14.55470301,98.549,98.491,14.40650942]
[1770166348682,14.55470301,98.549,98.494,9.1506]
[1770166349684,14.55470301,98.549,98.5,3.30747283]
[1770166350383,14.55470301,98.549,98.499,9.1502]
[1770166351580,14.55470301,98.549,98.502,14.40650942]
[1770166351784,14.55470301,98.567,98.511,14.40650942]
[1770166352178,14.55470301,98.549,98.49,3.30747283]
[1770166352385,14.55470301,98.549,98.48,419.68650942]
[1770166352386,14.55470301,98.539,98.481,14.40650942]
[1770166352684,14.55470301,98.529,98.473,14.40650942]
[1770166354986,14.55470301,98.526,98.473,14.40650942]
[1770166355686,3.30747283,98.52,98.473,14.40650942]
[1770166356889,14.55470301,98.526,98.473,14.40650942]
[1770166357783,3.30747283,98.53,98.473,14.40650942]
[1770166357784,14.55470301,98.524,98.473,14.40650942]
[1770166358085,142.2712,98.545,98.441,14.40650942]
[1770166358086,14.55470301,98.509,98.441,14.40650942]
[1770166358292,14.55470301,98.499,98.441,14.40650942]
[1770166358688,14.55470301,98.499,98.402,142.4762]
[1770166358689,14.55470301,98.479,98.426,14.40650942]
[1770166358889,3.30747283,98.46,98.41,14.40650942]
[1770166359088,3.30747283,98.46,98.411,9.1584]
[1770166359589,3.30747283,98.46,98.41,14.40650942]
[1770166363385,23.70870301,98.459,98.41,14.40650942]
[1770166363585,17.86217584,98.45,98.392,14.40650942]
[1770166364192,3.30747283,98.44,98.392,14.40650942]
[1770166364690,17.86217584,98.44,98.38,285.04]
[1770166364887,17.86217584,98.43,98.376,14.40650942]
[1770166365292,3.30747283,98.42,98.376,14.40650942]
[1770166366091,17.86217584,98.43,98.376,14.40650942]
[1770166367185,14.55470301,98.446,98.381,14.40650942]
[1770166367794,14.55470301,98.446,98.391,14.40650942]
[1770166367994,14.55470301,98.446,98.4,17.71398225]
[1770166368291,14.55470301,98.446,98.4,14.40650942]
[1770166373492,3.30588347,98.44,98.4,14.40650942]
[1770166373689,14.55470301,98.446,98.4,14.40650942]
[1770166376103,3.30588347,98.44,98.4,14.40650942]
[1770166376400,17.97408648,98.44,98.385,13.97688741]
[1770166376699,17.97408648,98.44,98.384,286.16]
[1770166376700,14.66820301,98.43,98.384,286.16]
[1770166376902,14.66820301,98.43,98.385,13.97688741]
[1770166377099,14.66820301,98.449,98.385,13.97688741]
[1770166378693,14.66820301,98.464,98.411,13.97688741]
[1770166379693,14.66820301,98.464,98.413,13.97688741]
[1770166380598,9.1527,98.472,98.415,13.97688741]
[1770166380799,14.66820301,98.471,98.415,13.97688741]
[1770166381197,14.66820301,98.467,98.415,13.97688741]
[1770166381395,3.30588347,98.46,98.415,13.97688741]
[1770166382297,14.66820301,98.467,98.415,13.97688741]
[1770166382996,17.97408648,98.46,98.405,405.42]
[1770166383198,17.97408648,98.46,98.4,13.97688741]
[1770166383199,17.97408648,98.44,98.384,13.97688741]
[1770166383898,17.97408648,98.44,98.334,142.576]
[1770166383899,14.66820301,98.46,98.401,13.97688741]
[1770166384099,14.66820301,98.46,98.411,15.31501757]
[1770166384292,3.30588347,98.47,98.411,15.31501757]
[1770166384798,18.2982,98.512,98.405,405.42]
[1770166384799,3.30588347,98.49,98.421,15.31501757]
[1770166385106,17.33647977,98.49,98.431,15.31501757]
[1770166385297,17.33647977,98.5,98.441,15.31501757]
[1770166385498,14.0305963,98.5,98.441,15.31501757]
[1770166385701,17.33647977,98.5,98.441,15.31501757]
[1770166386101,14.0305963,98.519,98.453,15.31501757]
[1770166386299,14.0305963,98.519,98.461,15.31501757]
[1770166387802,14.0305963,98.519,98.464,9.1534]